bitfinex-derivatives/quotes_BTCF0:USTF0_20250901
["timestamp","ask_amount","ask_price","bid_price","bid_amount"]
[1756760418310,0.02722628,109000.0,108990.0,1.97707828]
[1756760418611,0.04640628,109000.0,108990.0,1.88452718]
[1756760418805,0.04640628,109000.0,108990.0,1.97627838]
[1756760419003,0.05240628,109000.0,108990.0,0.90336718]
[1756760419305,0.03681628,109000.0,108990.0,1.88448718]
[1756760419608,0.02722628,109000.0,108990.0,1.97623838]
[1756760420001,0.02722628,109000.0,108990.0,2.02565573]
[1756760420798,0.02722628,109000.0,108980.0,0.04941735]
[1756760420799,1.04124541,109000.0,108980.0,0.04941735]
[1756760421001,0.62803913,108990.0,108970.0,0.02356]
[1756760421201,0.37803913,108980.0,108960.0,0.08111]
[1756760421497,0.37803913,108970.0,108950.0,0.44403678]
[1756760421696,0.37803913,108960.0,108950.0,0.42997678]
[1756760422204,0.01723913,108960.0,108950.0,0.83901678]
[1756760422412,0.3608,108970.0,108960.0,0.08111]
[1756760422598,0.37803913,108970.0,108960.0,0.46415678]
[1756760422798,0.37803913,108970.0,108960.0,1.44387678]
[1756760423101,0.01723913,108970.0,108960.0,2.18772356]
[1756760423612,0.01723913,108970.0,108960.0,1.80467678]
[1756760423910,0.01723913,108970.0,108960.0,1.44387678]
[1756760424312,0.37803913,108970.0,108960.0,1.44387678]
[1756760424500,0.01723913,108970.0,108960.0,1.53565508]
[1756760424700,0.01723913,108970.0,108960.0,1.89745508]
[1756760425006,0.01723913,108970.0,108960.0,1.80567678]
[1756760425309,0.01723913,108970.0,108960.0,1.44487678]
[1756760426310,0.01723913,108970.0,108960.0,1.53665508]
[1756760426609,0.01723913,108970.0,108960.0,1.89745508]
[1756760427607,0.01723913,108970.0,108960.0,1.53665508]
[1756760428000,0.01723913,108970.0,108960.0,1.44487678]
[1756760428703,0.26723913,108970.0,108960.0,0.46515678]
[1756760428907,0.62803913,108970.0,108960.0,0.43097678]
[1756760429114,0.62803913,108970.0,108960.0,0.04793]
[1756760429710,0.62803913,108970.0,108960.0,0.02456]
[1756760429910,0.62803913,108970.0,108960.0,0.001]
[1756760430511,0.94803913,108970.0,108960.0,0.001]
[1756760431817,2.30800591,108970.0,108960.0,0.001]
[1756760432211,1.92495913,108970.0,108960.0,0.001]
[1756760433014,2.29076678,108970.0,108930.0,0.13052735]
[1756760433314,0.3608,108940.0,108930.0,0.13052735]
[1756760433710,0.37703913,108940.0,108930.0,0.51357413]
[1756760433920,0.37703913,108940.0,108930.0,0.04941735]
[1756760434121,0.37703913,108940.0,108930.0,0.02956]
[1756760434322,0.37703913,108940.0,108930.0,0.05293]
[1756760434619,0.37703913,108940.0,108930.0,0.09111]
[1756760435222,0.62703913,108940.0,108930.0,0.006]
[1756760435412,0.62703913,108940.0,108930.0,0.01]
[1756760436518,0.63633359,108940.0,108930.0,0.01]
[1756760437521,0.70633359,108940.0,108930.0,0.01]
[1756760437719,0.99633359,108940.0,108930.0,0.01]
[1756760438221,0.99633359,108940.0,108930.0,0.09367]
[1756760438422,0.54703913,108940.0,108930.0,0.47671678]
[1756760438620,0.54703913,108940.0,108930.0,0.56852028]
[1756760439427,0.18623913,108940.0,108930.0,1.17932028]
[1756760439919,0.01623913,108940.0,108930.0,1.17932028]
[1756760440119,1.33536,108960.0,108950.0,0.01491]
[1756760440424,0.01623913,108940.0,108930.0,0.05825]
[1756760440619,0.37703913,108940.0,108930.0,0.05825]
[1756760440821,1.71203913,108940.0,108930.0,0.01]
[1756760441024,2.71508591,108940.0,108930.0,0.01]
[1756760441218,2.32884678,108940.0,108910.0,0.04708243]
[1756760441418,0.7216,108920.0,108910.0,0.01425913]
[1756760441620,0.7216,108920.0,108910.0,0.09792913]
[1756760442127,0.7156,108920.0,108910.0,0.01425913]
[1756760442324,0.7156,108920.0,108910.0,0.03826913]
[1756760442525,0.7116,108920.0,108910.0,0.09792913]
[1756760443126,0.7116,108920.0,108910.0,0.48097591]
[1756760443625,0.7116,108920.0,108910.0,0.48497591]
[1756760443823,1.33412,108930.0,108920.0,0.03542]
[1756760444022,1.33412,108930.0,108920.0,0.08367]
[1756760444522,1.33412,108930.0,108910.0,0.06950913]
[1756760444723,0.3608,108920.0,108910.0,0.06950913]
[1756760444917,0.3598,108920.0,108910.0,0.01825913]
[1756760445114,0.3598,108920.0,108910.0,0.01425913]
[1756760445926,0.6098,108920.0,108910.0,0.01625913]
[1756760446128,0.99284678,108920.0,108910.0,0.002]
[1756760447121,0.99284678,108920.0,108910.0,0.006]
[1756760447521,0.99584678,108920.0,108910.0,0.002]
[1756760447830,0.99584678,108920.0,108890.0,0.1164933]
[1756760448122,0.3608,108900.0,108890.0,0.1164933]
[1756760449222,0.6108,108900.0,108890.0,0.0328233]
[1756760449424,1.35464678,108900.0,108880.0,0.0328233]
[1756760449730,1.71544678,108890.0,108870.0,0.0328233]
[1756760449931,0.3608,108880.0,108860.0,0.1164933]
[1756760450126,0.3608,108870.0,108860.0,0.1164933]
[1756760450519,0.3608,108880.0,108860.0,0.46412008]
[1756760450723,0.3608,108880.0,108870.0,0.08367]
[1756760451526,0.3608,108880.0,108870.0,0.71671678]
[1756760451927,0.3618,108880.0,108870.0,0.71671678]
[1756760452128,0.001,108880.0,108870.0,1.58524096]
[1756760452333,0.001,108880.0,108870.0,2.57271501]
[1756760452529,0.3608,108910.0,108890.0,0.0918352]
[1756760452837,0.7208,108910.0,108900.0,0.48162678]
[1756760453228,0.7208,108910.0,108900.0,0.73162678]
[1756760453830,0.36,108910.0,108900.0,0.73162678]
[1756760454029,0.7208,108910.0,108890.0,0.08105482]
[1756760454224,0.3608,108900.0,108890.0,0.08367]
[1756760454428,0.3608,108910.0,108900.0,0.09858]
[1756760454731,0.6728,108910.0,108900.0,0.09858]
[1756760455628,0.6738,108910.0,108900.0,0.09858]
[1756760455927,0.6738,108910.0,108900.0,0.06316]
[1756760456139,0.6718,108910.0,108900.0,0.06316]
[1756760456341,0.6718,108910.0,108900.0,0.09858]
[1756760456742,0.6728,108910.0,108900.0,0.09858]
[1756760456943,0.6728,108910.0,108900.0,0.02401]
[1756760457737,0.6728,108910.0,108900.0,0.04825]
[1756760458740,0.6728,108910.0,108900.0,0.02401]
[1756760459135,0.6728,108910.0,108890.0,0.14167205]
[1756760459342,0.3608,108900.0,108890.0,0.51592401]
[1756760459542,0.3608,108900.0,108890.0,0.51338101]
[1756760459842,0.3608,108900.0,108890.0,0.54880101]
[1756760460348,0.3608,108900.0,108890.0,0.51592401]
[1756760460948,0.3608,108900.0,108890.0,0.13034563]
[1756760461448,0.3608,108900.0,108890.0,0.08209563]
[1756760461647,1.32892,108900.0,108890.0,0.0328884]
[1756760461948,0.002,108900.0,108890.0,0.49960518]
[1756760462141,0.3638,108900.0,108890.0,0.49960518]
[1756760462345,0.3638,108900.0,108890.0,0.1165584]
[1756760462545,0.3638,108900.0,108890.0,0.0328884]
[1756760462744,0.99684678,108900.0,108890.0,0.0328884]
[1756760463045,1.32684678,108900.0,108880.0,0.0328884]
[1756760463250,1.32856,108890.0,108880.0,0.0328884]
[1756760463450,1.32856,108890.0,108870.0,0.16576563]
[1756760463754,0.3608,108880.0,108870.0,0.1165584]
[1756760464452,0.3608,108880.0,108870.0,0.16676563]
[1756760464651,0.3608,108880.0,108870.0,0.16776563]
[1756760465052,0.3608,108880.0,108870.0,0.55081241]
[1756760465451,0.3608,108880.0,108870.0,0.54981241]
[1756760466458,0.3608,108880.0,108870.0,0.54881241]
[1756760466757,0.3608,108880.0,108870.0,0.0328884]
[1756760467258,0.3608,108880.0,108870.0,0.0572384]
[1756760467553,0.3608,108880.0,108870.0,0.0819284]
[1756760467755,0.3608,108880.0,108870.0,0.08209563]
[1756760467953,0.3608,108880.0,108870.0,0.0328884]
[1756760468156,0.74384678,108880.0,108870.0,0.0328884]
[1756760468360,0.74384678,108880.0,108860.0,0.10275105]
[1756760468657,0.3608,108870.0,108860.0,0.15179105]
[1756760468858,0.3608,108870.0,108860.0,0.18703105]
[1756760469557,0.3608,108870.0,108860.0,0.18803105]
[1756760470962,0.3608,108870.0,108860.0,0.15614265]
[1756760472053,0.3608,108870.0,108860.0,0.13548723]
[1756760472653,0.3608,108870.0,108860.0,0.05120723]
[1756760472861,0.6108,108870.0,108860.0,0.002]
[1756760473065,0.6108,108870.0,108860.0,0.00659]
[1756760473066,2.33892678,108870.0,108860.0,0.00659]
[1756760473366,2.35808762,108870.0,108860.0,0.00659]
[1756760474456,2.36108762,108870.0,108860.0,0.00559]
[1756760474764,2.36308762,108870.0,108860.0,0.00459]
[1756760475751,2.43681956,108870.0,108860.0,0.00459]
[1756760476467,0.83869278,108870.0,108860.0,0.00459]
[1756760476662,1.20257872,108870.0,108860.0,0.00459]
[1756760476859,2.16689872,108870.0,108860.0,0.02894]
[1756760477061,1.78385194,108870.0,108860.0,0.02894]
[1756760477555,2.16689872,108870.0,108860.0,0.02894]
[1756760479966,2.16689872,108870.0,108860.0,0.00459]
[1756760481166,1.78385194,108870.0,108860.0,0.00459]
[1756760481373,2.16689872,108870.0,108860.0,0.00459]
[1756760483270,2.16557872,108870.0,108860.0,0.00459]
[1756760488972,2.18471705,108870.0,108860.0,0.00459]
[1756760489373,2.43471705,108870.0,108860.0,0.00459]
[1756760489871,2.43471705,108870.0,108830.0,0.08428]
[1756760490078,0.3608,108840.0,108830.0,0.08428]
[1756760490270,1.32232,108840.0,108830.0,0.08428]
[1756760491169,0.3608,108840.0,108830.0,0.08887]
[1756760491372,1.32208,108840.0,108830.0,0.08987]
[1756760492072,1.32208,108840.0,108830.0,0.09087]
[1756760493170,1.32208,108840.0,108830.0,0.05563]
[1756760493378,1.32208,108840.0,108830.0,0.00659]
[1756760493677,1.70512678,108840.0,108830.0,0.00659]
[1756760494071,0.3608,108840.0,108830.0,0.05563]
[1756760494269,1.3214,108840.0,108830.0,0.09087]
[1756760494670,1.95444678,108840.0,108830.0,0.00659]
[1756760494870,2.27444678,108840.0,108830.0,0.00659]
[1756760495378,2.67665921,108840.0,108830.0,0.00659]
[1756760496079,2.68265921,108840.0,108830.0,0.00459]
[1756760496378,2.68265921,108840.0,108830.0,0.002]
[1756760497170,1.92056565,108840.0,108830.0,0.001]
[1756760497368,2.68665921,108840.0,108830.0,0.001]
[1756760502377,1.09301243,108840.0,108830.0,0.001]
[1756760502578,1.66856565,108840.0,108830.0,0.08251]
[1756760502782,2.05161243,108840.0,108830.0,0.08251]
[1756760503174,2.05161243,108840.0,108830.0,0.04841]
[1756760503871,1.66852565,108840.0,108830.0,0.33251]
[1756760504185,1.64936,108840.0,108830.0,0.33251]
[1756760505286,1.64916,108840.0,108830.0,0.33251]
[1756760505675,0.6848,108840.0,108830.0,0.33151]
[1756760505879,1.64584,108840.0,108830.0,0.33151]
[1756760506282,1.64284,108840.0,108830.0,0.33151]
[1756760506476,0.6878,108840.0,108830.0,0.33151]
[1756760506673,1.64152,108840.0,108830.0,0.33151]
[1756760506977,1.64352,108840.0,108830.0,0.33151]
[1756760507883,0.6828,108840.0,108830.0,0.33151]
[1756760508090,1.64216,108840.0,108830.0,0.85565091]
[1756760508390,1.64216,108840.0,108830.0,0.76376401]
[1756760509085,0.6848,108840.0,108830.0,0.76376401]
[1756760509392,1.64216,108840.0,108830.0,0.76376401]
[1756760509575,1.64216,108840.0,108830.0,0.38071723]
[1756760510080,1.64116,108840.0,108830.0,0.38071723]
[1756760511979,2.02420678,108840.0,108830.0,0.07341723]
[1756760512182,2.02420678,108840.0,108820.0,0.09661723]
[1756760512401,0.3608,108830.0,108820.0,0.09661723]
[1756760513395,0.3608,108830.0,108820.0,0.13071723]
[1756760514090,0.3608,108830.0,108820.0,0.09661723]
[1756760514593,0.3608,108830.0,108820.0,0.07341723]
[1756760514784,0.3618,108830.0,108820.0,0.04741]
[1756760515296,0.3648,108830.0,108820.0,0.04741]
[1756760515795,0.74784678,108830.0,108810.0,0.13334723]
[1756760516093,1.31628,108820.0,108810.0,0.13334723]
[1756760516994,1.31608,108820.0,108810.0,0.13334723]
[1756760517997,1.31908,108820.0,108810.0,0.13334723]
[1756760518794,1.31908,108820.0,108810.0,0.08414]
[1756760518994,1.31908,108820.0,108810.0,0.1500298]
[1756760520192,0.3638,108820.0,108810.0,0.1500298]
[1756760520399,0.95768,108820.0,108810.0,1.14387658]
[1756760520602,0.003,108820.0,108810.0,1.23578068]
[1756760521397,0.001,108820.0,108810.0,1.23578068]
[1756760521599,0.002,108820.0,108810.0,1.23578068]
[1756760522488,0.002,108820.0,108810.0,0.89387658]
[1756760522791,0.002,108820.0,108810.0,0.02684]
[1756760522792,0.3628,108820.0,108810.0,0.02684]
[1756760522985,0.3618,108820.0,108810.0,0.00263]
[1756760523190,0.3618,108820.0,108810.0,0.05213745]
[1756760523687,0.99484678,108820.0,108810.0,0.05213745]
[1756760524098,0.99484678,108820.0,108810.0,0.00263]
[1756760525687,1.33484678,108820.0,108810.0,0.00263]
[1756760526090,0.9518,108820.0,108810.0,0.00263]
[1756760526397,1.3440523,108820.0,108810.0,0.00263]
[1756760528499,1.36349409,108820.0,108790.0,0.04950745]
[1756760528799,1.10464678,108800.0,108790.0,0.04950745]
[1756760529492,1.10464678,108800.0,108790.0,0.05150745]
[1756760529800,1.10464678,108800.0,108790.0,0.05350745]
[1756760530301,1.10464678,108800.0,108790.0,0.004]
[1756760530692,1.10564678,108800.0,108790.0,0.002]
[1756760530892,1.10564678,108800.0,108790.0,0.03498666]
[1756760531097,1.17758795,108800.0,108790.0,0.03298666]
[1756760531395,1.49758795,108800.0,108780.0,0.10987411]
[1756760531592,1.69592678,108790.0,108780.0,0.10987411]
[1756760531893,1.71592678,108790.0,108780.0,0.03561666]
[1756760532098,2.00592678,108790.0,108780.0,0.00263]
[1756760532295,2.25592678,108790.0,108780.0,0.00263]
[1756760532700,2.25592678,108790.0,108780.0,0.00363]
[1756760532896,2.25592678,108790.0,108780.0,0.00563]
[1756760533395,2.25592678,108790.0,108780.0,0.001]
[1756760534001,2.25592678,108790.0,108750.0,0.14880745]
[1756760534202,0.3608,108760.0,108750.0,0.14880745]
[1756760534401,1.31196,108760.0,108750.0,0.10193]
[1756760535301,1.31196,108760.0,108750.0,0.02738]
[1756760535507,1.31196,108760.0,108750.0,0.10188]
[1756760535799,1.31196,108760.0,108750.0,0.10488]
[1756760535997,1.31196,108760.0,108750.0,0.06939]
[1756760536304,1.31196,108760.0,108750.0,0.05953]
[1756760536508,1.31196,108760.0,108750.0,0.09502]
[1756760536704,1.31196,108760.0,108750.0,0.09002]
[1756760536904,1.31296,108760.0,108750.0,0.09502]
[1756760537393,1.31296,108760.0,108750.0,0.01063]
[1756760537702,1.69600678,108760.0,108750.0,0.03538]
[1756760537899,1.70509927,108760.0,108750.0,0.01063]
[1756760538107,1.32205249,108760.0,108750.0,0.03538]
[1756760538605,0.37089249,108760.0,108750.0,0.05953]
[1756760538797,0.3618,108760.0,108750.0,0.74092678]
[1756760539096,0.3608,108770.0,108760.0,0.1763371]
[1756760539298,0.3708,108770.0,108760.0,0.55938398]
[1756760539491,0.37019398,108780.0,108770.0,0.08439]
[1756760539693,0.6708,108780.0,108770.0,0.80937548]
[1756760540004,0.4008,108780.0,108770.0,0.80937548]
[1756760540696,0.04,108780.0,108770.0,1.17017548]
[1756760541701,0.041,108780.0,108770.0,1.17017548]
[1756760541902,0.001,108780.0,108770.0,1.21968293]
[1756760542107,0.94952,108800.0,108790.0,0.0489]
[1756760542312,1.36032,108800.0,108790.0,0.46743678]
[1756760542503,1.36032,108800.0,108790.0,0.08439]
[1756760543414,0.051,108800.0,108790.0,0.80935858]
[1756760543803,0.002,108800.0,108790.0,1.17015858]
[1756760544201,0.002,108800.0,108790.0,1.21966603]
[1756760544408,0.3608,108820.0,108810.0,0.0919049]
[1756760544605,0.36997211,108820.0,108810.0,0.46743678]
[1756760545100,0.36997211,108820.0,108810.0,0.08439]
[1756760545507,0.36997211,108820.0,108810.0,0.0489]
[1756760545809,0.36997211,108820.0,108810.0,0.08539]
[1756760546105,0.36997211,108820.0,108810.0,0.46843678]
[1756760546608,0.36997211,108820.0,108810.0,0.08539]
[1756760550814,0.36997211,108820.0,108810.0,0.08802]
[1756760551011,0.36997211,108820.0,108810.0,0.00363]
[1756760552614,0.61997211,108820.0,108810.0,0.00363]
[1756760553714,1.34301889,108820.0,108810.0,0.00363]
[1756760556917,2.28893889,108820.0,108810.0,0.00363]
[1756760560311,0.95997211,108820.0,108810.0,0.00363]
[1756760560518,1.90505211,108820.0,108810.0,0.08782]
[1756760560715,1.65505211,108820.0,108810.0,0.08782]
[1756760561215,1.65505211,108820.0,108810.0,0.05035]
[1756760561412,0.70997211,108820.0,108810.0,0.05035]
[1756760561614,1.65505211,108820.0,108810.0,0.05035]
[1756760561808,0.70997211,108820.0,108810.0,0.05035]
[1756760562008,0.70997211,108820.0,108810.0,0.08782]
[1756760562216,1.65469211,108820.0,108810.0,0.33782]
[1756760562715,1.65469211,108820.0,108810.0,0.25363]
[1756760562923,2.28773889,108820.0,108810.0,0.00363]
[1756760563122,1.90469211,108820.0,108810.0,0.00363]
[1756760563313,2.28773889,108820.0,108810.0,0.00363]
[1756760567427,2.30704509,108820.0,108810.0,0.00363]
[1756760568021,1.92399831,108820.0,108810.0,0.00363]
[1756760568324,2.05604509,108820.0,108810.0,0.0264]
[1756760568918,0.72927831,108820.0,108810.0,0.08782]
[1756760569121,0.72927831,108820.0,108810.0,0.33782]
[1756760569122,0.70997211,108820.0,108810.0,0.33782]
[1756760569318,1.65329211,108820.0,108810.0,0.33782]
[1756760570117,0.70997211,108820.0,108810.0,0.33782]
[1756760570323,1.64392,108820.0,108810.0,0.77018164]
[1756760570624,1.64392,108820.0,108810.0,0.38713486]
[1756760573629,1.64392,108820.0,108810.0,0.34966486]
[1756760573815,1.64392,108820.0,108810.0,0.38713486]
[1756760574730,1.64392,108820.0,108810.0,0.38450486]
[1756760576331,1.64392,108820.0,108810.0,0.38713486]
[1756760577327,1.64284,108820.0,108810.0,0.38713486]
[1756760579433,1.64284,108820.0,108810.0,0.13713486]
[1756760580937,0.3608,108820.0,108810.0,0.81277168]
[1756760581125,1.30176,108830.0,108820.0,0.1760865]
[1756760581329,0.6408,108830.0,108820.0,0.62517211]
[1756760581531,0.28,108830.0,108820.0,0.62517211]
[1756760581835,0.28,108830.0,108820.0,0.53327561]
[1756760582530,0.28,108830.0,108820.0,0.62517211]
[1756760582924,0.281,108830.0,108820.0,0.62517211]
[1756760584237,0.6418,108830.0,108820.0,0.11275883]
[1756760584532,0.6418,108830.0,108820.0,0.09720288]
[1756760584737,0.6418,108830.0,108820.0,0.08519]
[1756760584933,0.6408,108830.0,108820.0,0.09720288]
[1756760585332,1.02384678,108830.0,108820.0,0.05048288]
[1756760585637,0.6408,108830.0,108820.0,0.13479288]
[1756760585841,0.6418,108830.0,108820.0,0.13479288]
[1756760586031,1.58172,108830.0,108820.0,0.13479288]
[1756760586730,1.58172,108830.0,108820.0,0.13379288]
[1756760586926,1.83172,108830.0,108820.0,0.04948288]
[1756760587125,2.21476678,108830.0,108810.0,0.07497288]
[1756760587432,0.3608,108820.0,108810.0,0.09966288]
[1756760587631,0.3608,108820.0,108810.0,0.13642288]
[1756760589841,0.3608,108820.0,108810.0,0.13742288]
[1756760590336,0.3608,108820.0,108810.0,0.13642288]
[1756760590534,0.3608,108820.0,108810.0,0.13742288]
[1756760590730,1.2998,108820.0,108810.0,0.13742288]
[1756760591039,0.3608,108820.0,108810.0,0.22932778]
[1756760591234,1.29976,108820.0,108810.0,0.22932778]
[1756760591434,1.29976,108820.0,108810.0,0.52046966]
[1756760591630,1.29976,108820.0,108810.0,0.10066288]
[1756760592544,1.29976,108820.0,108810.0,0.05311288]
[1756760593139,1.68280678,108820.0,108810.0,0.05311288]
[1756760593333,1.68280678,108820.0,108810.0,0.00363]
[1756760594036,1.93280678,108820.0,108810.0,0.00363]
[1756760594536,2.27280678,108820.0,108810.0,0.00363]
[1756760594739,2.65585356,108820.0,108810.0,0.00363]
[1756760594941,0.3608,108790.0,108740.0,0.05552873]
[1756760595138,0.3608,108750.0,108740.0,0.03676]
[1756760595338,0.3608,108750.0,108740.0,0.08431]
[1756760595736,0.3608,108750.0,108740.0,0.08794]
[1756760596133,0.3608,108750.0,108740.0,0.12489386]
[1756760596339,0.3608,108750.0,108740.0,0.13189386]
[1756760597140,0.3618,108750.0,108740.0,0.12889386]
[1756760597337,1.37336,108750.0,108740.0,0.04458386]
[1756760597842,1.38262406,108750.0,108740.0,0.04458386]
[1756760598044,1.38262406,108750.0,108740.0,0.04258386]
[1756760598244,1.37336,108750.0,108740.0,0.04258386]
[1756760598443,0.3618,108750.0,108740.0,0.12689386]
[1756760598847,0.001,108750.0,108740.0,0.75994064]
[1756760599543,0.3618,108750.0,108740.0,0.75994064]
[1756760600047,0.3618,108750.0,108740.0,0.37689386]
[1756760600349,0.3618,108750.0,108740.0,0.34394]
[1756760600751,0.3618,108750.0,108740.0,0.72698678]
[1756760601455,0.3618,108750.0,108740.0,0.72498678]
[1756760601642,0.3618,108750.0,108740.0,0.34294]
[1756760602549,0.3618,108750.0,108740.0,0.34194]
[1756760602749,0.3618,108750.0,108740.0,0.33831]
[1756760602945,0.3618,108750.0,108740.0,0.34194]
[1756760603651,0.3618,108750.0,108740.0,0.00763]
[1756760603955,0.99484678,108750.0,108740.0,0.004]
[1756760604149,1.36484678,108750.0,108740.0,0.004]
[1756760604949,0.35621,108730.0,108700.0,0.03295386]
[1756760605246,1.10464678,108710.0,108680.0,0.05962]
[1756760605453,0.7216,108690.0,108680.0,0.02286]
[1756760605850,0.7216,108690.0,108680.0,0.08431]
[1756760606041,0.7216,108690.0,108680.0,0.33794]
[1756760606440,0.7216,108690.0,108680.0,0.25863]
[1756760606647,0.7216,108690.0,108680.0,0.09294]
[1756760606946,0.7216,108690.0,108680.0,0.08794]
[1756760607146,0.7226,108690.0,108680.0,0.09294]
[1756760608249,0.7226,108690.0,108680.0,0.09494]
[1756760608850,0.7226,108690.0,108680.0,0.47398678]
[1756760609556,0.001,108690.0,108680.0,1.08478678]
[1756760609860,0.001,108690.0,108680.0,0.05418]
[1756760610063,0.3618,108690.0,108680.0,0.72398678]
[1756760610367,0.001,108690.0,108680.0,0.72398678]
[1756760610858,0.001,108690.0,108680.0,0.09094]
[1756760611062,0.3618,108690.0,108680.0,0.09094]
[1756760611665,0.3618,108690.0,108680.0,0.05418]
[1756760611855,0.3618,108690.0,108680.0,0.09094]
[1756760612051,0.3618,108690.0,108680.0,0.47398678]
[1756760612452,0.001,108690.0,108680.0,0.47398678]
[1756760613071,0.001,108690.0,108680.0,0.09094]
[1756760613462,0.001,108690.0,108680.0,0.47398678]
[1756760613868,0.001,108690.0,108680.0,0.09094]
[1756760614163,0.6118,108690.0,108680.0,0.003]
[1756760614361,1.69789356,108690.0,108680.0,0.003]
[1756760614560,0.9318,108690.0,108680.0,0.003]
[1756760614758,1.69789356,108690.0,108670.0,0.0046]
[1756760614959,1.80868678,108680.0,108670.0,0.0046]
[1756760615159,2.39868678,108680.0,108670.0,0.0046]
[1756760615965,2.39868678,108680.0,108670.0,0.0056]
[1756760616570,2.78273356,108680.0,108670.0,0.0056]
[1756760616972,2.78273356,108680.0,108670.0,0.001]
[1756760617561,2.78273356,108680.0,108620.0,2.71288678]
[1756760617772,0.74384678,108660.0,108650.0,0.00363]
[1756760618071,1.10464678,108660.0,108650.0,0.00363]
[1756760618256,1.10464678,108660.0,108640.0,0.08779]
[1756760618461,0.3608,108650.0,108640.0,0.08779]
[1756760618968,0.3608,108650.0,108640.0,0.09142]
[1756760619364,0.3608,108650.0,108640.0,0.09442]
[1756760619564,0.3608,108650.0,108640.0,0.0076]
[1756760619765,2.05244,108650.0,108640.0,0.0076]
[1756760620071,2.05244,108650.0,108600.0,0.09801]
[1756760620368,0.3608,108610.0,108600.0,0.06347]
[1756760620565,0.3608,108610.0,108590.0,0.03454]
[1756760620866,0.3608,108600.0,108560.0,1.94432]
[1756760621072,0.3608,108600.0,108570.0,0.08319]
[1756760621073,0.3568,108580.0,108570.0,0.08319]
[1756760621262,0.3608,108600.0,108580.0,0.03454]
[1756760621568,0.3608,108600.0,108590.0,0.08682]
[1756760621761,0.4528746,108610.0,108600.0,0.09801]
[1756760621966,0.4528746,108610.0,108600.0,0.10164]
[1756760622165,0.4538746,108610.0,108600.0,0.10164]
[1756760622563,0.4598746,108610.0,108600.0,0.10164]
[1756760623080,0.4538746,108610.0,108600.0,0.10164]
[1756760623365,0.84392138,108610.0,108600.0,1e-07]
[1756760623562,0.4608746,108610.0,108600.0,1e-07]
[1756760623762,0.4648746,108610.0,108600.0,1e-07]
[1756760623959,0.7148746,108610.0,108600.0,1e-07]
[1756760624173,1.0848746,108610.0,108600.0,1e-07]
[1756760624367,1.0848746,108610.0,108550.0,0.01419]
[1756760624569,0.3608,108560.0,108540.0,0.08319]
[1756760624772,0.3608,108550.0,108540.0,0.08319]
[1756760624971,0.3608,108570.0,108550.0,0.04936]
[1756760625174,0.3608,108570.0,108560.0,0.08319]
[1756760625371,0.3608,108590.0,108570.0,0.08319]
[1756760625578,0.3608,108600.0,108580.0,0.79249678]
[1756760625868,1.03384678,108600.0,108580.0,0.04865]
[1756760626170,0.3608,108590.0,108570.0,0.05954]
[1756760626475,0.74384678,108580.0,108550.0,0.41016]
[1756760626775,0.3608,108560.0,108550.0,0.04182]
[1756760627068,0.3638,108590.0,108560.0,0.03454]
[1756760627269,0.6908,108590.0,108580.0,0.46623678]
[1756760627470,0.004,108590.0,108580.0,0.82703678]
[1756760627671,0.004,108590.0,108580.0,1.07703678]
[1756760628577,0.3678,108590.0,108580.0,0.08319]
[1756760628871,0.6178,108590.0,108570.0,0.3868]
[1756760629075,0.6178,108590.0,108570.0,0.026]
[1756760629076,0.3608,108580.0,108570.0,0.026]
[1756760629271,0.74384678,108580.0,108570.0,0.026]
[1756760629472,0.3608,108580.0,108570.0,0.04865]
[1756760629667,0.3638,108590.0,108570.0,1.04249678]
[1756760629867,0.3608,108580.0,108560.0,0.39534]
[1756760630164,0.3628,108590.0,108570.0,0.04865]
[1756760630369,0.005,108580.0,108570.0,0.08319]
[1756760630775,0.3608,108580.0,108570.0,0.08319]
[1756760630975,0.99784678,108580.0,108560.0,0.3858]
[1756760631169,0.38304678,108570.0,108560.0,0.3608]
[1756760631364,0.74384678,108570.0,108540.0,0.025]
[1756760631568,1.10464678,108550.0,108520.0,0.03454]
[1756760631764,1.10464678,108550.0,108520.0,0.05954]
[1756760631765,0.74384678,108540.0,108520.0,0.05954]
[1756760632076,0.3608,108550.0,108540.0,0.08319]
[1756760632669,0.4529238,108550.0,108540.0,0.08319]
[1756760632868,0.0921408,108530.0,108520.0,0.44399]
[1756760633069,0.0921408,108530.0,108520.0,0.46623678]
[1756760633277,0.0921408,108530.0,108520.0,0.08319]
[1756760633978,0.0931408,108530.0,108520.0,0.031]
[1756760634175,0.0931408,108530.0,108520.0,0.006]
[1756760634482,0.4589408,108530.0,108520.0,0.031]
[1756760634676,0.0921577,108510.0,108500.0,0.45818]
[1756760634878,0.0921577,108510.0,108500.0,0.80818]
[1756760635380,0.0921539,108520.0,108510.0,0.08319]
[1756760636378,0.0921539,108520.0,108510.0,0.33319]
[1756760636578,0.0951539,108520.0,108510.0,0.33319]
[1756760637178,0.003,108520.0,108510.0,1.07783101]
[1756760637475,0.003,108520.0,108510.0,2.30330881]
[1756760637884,0.003,108520.0,108510.0,2.1804678]
[1756760638075,0.003,108520.0,108510.0,2.56330881]
[1756760638983,0.092119,108560.0,108550.0,0.04936]
[1756760639177,0.0921115,108570.0,108560.0,0.03454]
[1756760639482,0.0921115,108570.0,108560.0,0.44399]
[1756760639870,0.3811246,108580.0,108570.0,0.08319]
[1756760639871,0.112427,108580.0,108570.0,0.08319]
[1756760640076,0.112427,108580.0,108570.0,0.44399]
[1756760640276,1.94564,108610.0,108600.0,0.01482]
[1756760640570,0.02026446,108620.0,108600.0,0.85054241]
[1756760640776,0.02026446,108620.0,108610.0,0.74364101]
[1756760641176,0.02026446,108620.0,108610.0,0.77818101]
[1756760641779,0.02026446,108620.0,108610.0,0.64534]
[1756760641973,0.02026446,108620.0,108610.0,0.39534]
[1756760642178,0.02026446,108620.0,108610.0,0.87025401]
[1756760642483,0.02026446,108620.0,108610.0,0.39534]
[1756760642682,0.02026446,108620.0,108610.0,0.77818101]
[1756760642883,0.02026446,108620.0,108610.0,0.39534]
[1756760643283,0.02026446,108620.0,108610.0,0.77918101]
[1756760643284,0.02426446,108620.0,108610.0,0.77918101]